bitfinex/quotes_ETHUSD_20260302
["timestamp","ask_amount","ask_price","bid_price","bid_amount"]
[1772464227175,0.00859998,2013.2,2011.8,6.22393374]
[1772464227374,7.12543296,2013.2,2011.0,1.24307018]
[1772464227679,0.002,2012.0,2010.9,2.77097741]
[1772464227879,0.002,2012.0,2010.6,7.11138691]
[1772464228082,0.002,2012.0,2010.8,2.77097741]
[1772464228255,5.8750109,2012.9,2010.9,0.065536]
[1772464228451,0.002,2012.2,2011.8,8.6389544]
[1772464228666,0.00859998,2013.2,2011.8,8.6389544]
[1772464228861,0.00859998,2013.2,2011.9,1.24260649]
[1772464229381,0.00859998,2013.2,2011.8,5.86797699]
[1772464229579,0.00859998,2013.2,2012.3,5.86797699]
[1772464229783,1.704,2013.8,2012.3,5.86797699]
[1772464229993,1.53039012,2014.0,2012.3,5.86797699]
[1772464230199,7.73420257,2014.9,2012.1,3.81398534]
[1772464230200,0.005,2016.0,2013.7,5.86797699]
[1772464230495,6.0272026,2015.1,2013.6,0.35595675]
[1772464230708,0.1521917,2015.1,2013.5,2.77097741]
[1772464230866,0.1521917,2015.1,2013.5,5.86797699]
[1772464231070,2.95169478,2015.0,2013.0,8.6389544]
[1772464231291,6.0272026,2015.1,2013.1,5.86797699]
[1772464231474,7.11570568,2015.0,2013.1,5.86797699]
[1772464231787,5.8750109,2014.8,2013.0,2.77097741]
[1772464231976,1.711,2014.7,2012.6,5.93351299]
[1772464232284,1.711,2014.7,2012.7,7.11008957]
[1772464232285,1.711,2014.6,2012.7,7.11008957]
[1772464232490,5.8750109,2014.7,2012.7,7.11008957]
[1772464232784,5.8750109,2014.7,2012.6,0.065536]
[1772464232785,0.1521917,2015.1,2013.5,1.24161907]
[1772464232975,0.1521917,2015.1,2013.6,1.234]
[1772464233155,1.711,2015.0,2013.5,5.86797699]
[1772464233355,0.1521917,2015.1,2013.5,5.86797699]
[1772464233882,0.1521917,2015.1,2013.7,1.4]
[1772464234456,0.1521917,2015.1,2013.9,5.86797699]
[1772464234857,0.1521917,2015.1,2013.8,2.77097741]
[1772464235087,0.1521917,2015.1,2013.7,1.4]
[1772464235385,0.1521917,2015.1,2013.9,5.86797699]
[1772464235590,0.1521917,2015.1,2013.7,2.64148421]
[1772464235591,0.0921917,2015.1,2014.1,8.6389544]
[1772464235955,0.0921917,2015.1,2014.0,1.234]
[1772464236256,0.0921917,2015.1,2013.7,1.4]
[1772464236785,0.0921917,2015.1,2013.7,8.50945692]
[1772464236974,0.0921917,2015.1,2013.8,5.86797699]
[1772464237486,0.0921917,2015.1,2014.0,5.86797699]
[1772464237650,0.0921917,2015.1,2014.1,2.77097741]
[1772464237853,0.0921917,2015.1,2014.1,8.6389544]
[1772464238655,0.0921917,2015.1,2014.1,5.86797699]
[1772464238851,0.0921917,2015.1,2014.2,7.09797699]
[1772464239262,0.0921917,2015.1,2014.2,5.86797699]
[1772464239582,0.0921917,2015.1,2013.8,1.23]
[1772464239764,0.0921917,2015.1,2013.7,7.26797699]
[1772464240082,1.24510775,2016.0,2014.2,2.77097741]
[1772464240490,1.697,2015.9,2014.0,7.09697699]
[1772464240659,1.696,2015.8,2014.0,7.09697699]
[1772464240859,1.696,2015.7,2014.0,7.09697699]
[1772464241060,5.8750109,2015.6,2013.7,4.17097741]
[1772464241386,1.696,2015.5,2013.7,1.4]
[1772464241605,1.697,2015.4,2013.8,5.86797699]
[1772464241759,5.8750109,2015.6,2013.7,2.77097741]
[1772464242089,5.8750109,2015.4,2013.5,2.58598534]
[1772464242263,5.8750109,2015.4,2013.3,5.86797699]
[1772464242464,5.8750109,2015.2,2013.3,5.86797699]
[1772464242666,5.8750109,2015.2,2013.4,0.001]
[1772464242869,7.5700109,2015.1,2013.4,0.001]
[1772464243070,5.8750109,2015.1,2013.4,0.001]
[1772464243268,5.8750109,2015.6,2013.4,5.93451299]
[1772464243559,1.693,2015.5,2013.8,5.86797699]
[1772464243787,5.8750109,2015.4,2013.8,5.86797699]
[1772464244475,1.692,2015.3,2013.5,5.86797699]
[1772464244660,7.5670109,2015.3,2013.5,5.86797699]
[1772464244860,300.0,2015.1,2013.5,5.86797699]
[1772464245291,300.0,2015.1,2014.0,5.86797699]
[1772464245466,300.0,2015.1,2013.6,0.43872971]
[1772464245786,1.707,2015.0,2013.4,5.86897699]
[1772464245998,5.276,2015.0,2013.4,5.86897699]
[1772464246158,4.9611788,2015.7,2013.4,5.86897699]
[1772464246159,1e-08,2016.0,2014.7,5.86797699]
[1772464246359,1.71800001,2016.0,2014.6,0.37365946]
[1772464246559,5.8750109,2015.9,2014.2,5.86797699]
[1772464246790,5.8750109,2015.8,2014.0,0.37365946]
[1772464246993,5.8750109,2015.6,2013.5,2.77097741]
[1772464247288,5.8750109,2015.4,2013.5,2.77097741]
[1772464247492,6.11961446,2015.2,2013.4,5.86897699]
[1772464247696,6.11961446,2015.2,2013.6,6.39531693]
[1772464247912,1.718,2015.3,2013.7,0.065536]
[1772464248117,8.74210192,2015.7,2013.7,6.46085293]
[1772464248406,8.74210192,2015.7,2013.8,0.37365946]
[1772464248407,6.11961446,2015.3,2013.8,0.37365946]
[1772464248583,6.11961446,2015.3,2013.6,1.226]
[1772464249279,7.83461446,2015.2,2013.6,1.226]
[1772464249478,6.11961446,2015.1,2013.6,1.226]
[1772464249680,6.11961446,2015.1,2013.4,0.001]
[1772464250421,6.11961446,2014.9,2013.4,0.001]
[1772464250626,1.713,2014.8,2013.4,0.001]
[1772464250784,6.11961446,2014.7,2013.4,0.001]
[1772464250990,6.11961446,2014.5,2013.4,0.001]
[1772464251295,1.712,2014.4,2013.4,0.001]
[1772464251510,6.11961446,2014.4,2013.4,0.001]
[1772464251811,7.83061446,2014.4,2013.4,0.001]
[1772464252018,7.82961446,2014.4,2013.4,0.001]
[1772464252220,6.11961446,2014.3,2013.4,0.001]
[1772464252515,1.709,2014.2,2012.4,3.99097741]
[1772464252703,6.11961446,2014.1,2012.5,1.61589548]
[1772464252908,1.240888,2014.7,2012.5,1.61589548]
[1772464252909,7.82861446,2014.0,2012.5,0.81238917]
[1772464253214,1.2414341,2013.8,2012.1,8.98130227]
[1772464253390,6.11961446,2013.7,2012.1,0.37365946]
[1772464253788,6.11961446,2013.7,2011.6,0.43872971]
[1772464253987,6.11961446,2013.7,2011.4,0.37365946]
[1772464254180,6.11961446,2013.5,2011.4,0.37365946]
[1772464254484,6.11961446,2013.3,2011.4,0.81238917]
[1772464254689,6.11961446,2013.3,2011.2,2.77097741]
[1772464254690,6.11961446,2013.3,2011.7,2.77097741]
[1772464254913,6.11961446,2013.3,2011.8,0.37365946]
[1772464255214,7.82761446,2013.2,2011.8,0.81238917]
[1772464255415,6.11961446,2013.2,2011.8,0.37365946]
[1772464255616,6.11961446,2013.0,2011.4,1.24288581]
[1772464255916,1.708,2012.9,2011.7,0.37365946]
[1772464256216,6.11961446,2013.0,2011.5,0.37365946]
[1772464256419,6.11961446,2013.5,2011.9,2.77097741]
[1772464256625,2.60084148,2013.9,2012.0,6.46085293]
[1772464256926,6.11961446,2014.5,2012.9,2.77097741]
[1772464257113,1.706,2014.1,2012.9,2.77097741]
[1772464257422,1.706,2014.1,2012.0,0.37365946]
[1772464257423,6.11961446,2013.8,2012.7,0.37365946]
[1772464257730,6.11961446,2013.8,2011.9,2.77097741]
[1772464257938,6.11961446,2013.6,2011.9,10.7825398]
[1772464258231,2.60084148,2013.9,2011.9,10.7825398]
[1772464258232,6.11961446,2013.4,2012.0,0.37365946]
[1772464258391,6.11961446,2013.4,2012.0,0.001]
[1772464258591,1.71,2013.3,2012.0,0.001]
[1772464258834,1.71,2013.2,2012.0,0.001]
[1772464259014,6.11961446,2013.1,2012.0,0.001]
[1772464259523,1.709,2013.0,2012.0,0.001]
[1772464259744,6.11961446,2012.8,2012.0,0.001]
[1772464260043,6.11961446,2012.6,2011.5,0.001]
[1772464260394,6.11961446,2012.4,2011.5,0.001]
[1772464260591,6.11961446,2012.3,2011.5,0.001]
[1772464260818,1.708,2012.2,2011.5,0.001]
[1772464261019,6.11961446,2012.3,2011.5,0.001]
[1772464261020,1.708,2012.1,2011.5,0.001]
[1772464261603,6.11961446,2013.3,2011.5,0.001]
[1772464261800,6.11961446,2013.1,2011.5,0.001]
[1772464261999,6.11961446,2012.9,2011.5,0.001]
[1772464262325,6.11961446,2012.7,2011.5,0.001]
[1772464262641,1.708,2013.2,2011.9,2.77097741]
[1772464262790,1.708,2013.1,2011.9,2.77097741]
[1772464262997,1.708,2013.1,2012.0,0.37365946]
[1772464263298,1.708,2013.1,2011.5,6.46185293]
[1772464263299,1.708,2013.1,2011.7,2.77097741]
[1772464263608,6.11961446,2013.8,2011.7,3.14463687]
[1772464263920,6.11961446,2013.8,2012.2,2.77097741]
[1772464264242,1.706,2013.9,2012.7,2.77097741]
[1772464264533,1.24082232,2014.8,2012.2,9.16629434]
[1772464264534,7.82761446,2013.8,2012.2,9.16629434]
[1772464264696,7.82861446,2014.6,2012.7,2.77097741]
[1772464264895,1.709,2014.5,2012.6,6.46085293]
[1772464265098,6.11961446,2014.6,2013.0,2.77097741]
[1772464265400,6.11961446,2014.6,2013.0,4.01290221]
[1772464265401,1.709,2014.4,2013.0,4.01290221]
[1772464265598,1.709,2015.0,2013.0,10.40821914]
[1772464265903,6.11961446,2015.1,2013.6,0.065536]
[1772464266105,1.708,2015.6,2014.0,2.77097741]
[1772464266430,0.003,2015.7,2014.6,0.065536]
[1772464266798,1e-08,2016.0,2015.0,2.77097741]
[1772464266997,0.017,2017.4,2015.7,9.16629434]
[1772464267226,6.11961446,2017.2,2015.2,1.217]
[1772464267426,6.11961446,2017.2,2015.4,0.81688917]
[1772464267639,6.11961446,2017.2,2015.3,1.30601843]
[1772464267640,6.11961446,2017.1,2015.3,7.70136302]
[1772464267800,0.017,2017.4,2016.2,2.77097741]
[1772464267996,0.017,2017.4,2015.8,6.46085293]
[1772464268300,0.017,2017.4,2016.2,2.77097741]
[1772464268726,0.66325147,2017.8,2016.7,2.77097741]
[1772464268895,0.66325147,2017.8,2017.2,2.77097741]
[1772464269096,0.00858394,2019.0,2017.3,1.216]
[1772464269330,0.00858394,2019.0,2017.4,2.77097741]
[1772464269531,0.00858394,2019.0,2017.1,0.37815946]
[1772464269532,6.11961446,2018.7,2017.1,0.37815946]
[1772464269855,6.11961446,2018.7,2016.2,6.39531693]
[1772464269856,6.11961446,2018.5,2016.1,2.77097741]
[1772464270002,6.11961446,2018.3,2016.1,2.77097741]
[1772464270329,6.06961446,2018.3,2016.6,2.77097741]
[1772464270716,1.23835942,2018.8,2017.1,2.77097741]
[1772464270717,1.709,2018.7,2017.1,2.77097741]
[1772464270925,6.11961446,2018.7,2017.1,2.77097741]
[1772464271128,0.1521917,2018.9,2017.1,2.77097741]
[1772464271443,0.1521917,2018.9,2017.6,2.77097741]
[1772464271615,0.1521917,2018.9,2017.6,4.01006614]
[1772464271817,0.1521917,2018.9,2017.6,2.77097741]
[1772464272423,0.1521917,2018.9,2017.0,0.065536]
[1772464272624,0.1521917,2018.9,2017.3,0.065536]
[1772464272936,0.1521917,2018.9,2017.7,2.77097741]
[1772464273142,0.1521917,2018.9,2017.7,9.16629434]
[1772464273347,0.0921917,2018.9,2017.9,1.23891173]
[1772464273518,0.0921917,2018.9,2018.1,2.77097741]
[1772464273720,0.0921917,2018.9,2017.9,10.38229434]
[1772464273919,0.00859998,2019.2,2017.9,10.38229434]
[1772464274250,0.00859998,2019.2,2017.8,1.23896513]
[1772464274251,7.3570153,2020.4,2018.0,6.74196105]
[1772464274548,6.34384194,2020.2,2017.5,9.03122432]
[1772464274848,6.34384194,2020.0,2017.6,0.065536]
[1772464275022,1.23740084,2020.4,2018.1,6.26024691]
[1772464275023,6.34384194,2020.3,2018.1,6.26024691]
[1772464275215,6.34384194,2020.3,2018.5,9.03122432]
[1772464275410,1.23714957,2020.8,2018.6,6.26024691]
[1772464275411,7.58099151,2020.8,2018.6,6.26024691]
[1772464275616,6.34384194,2020.8,2018.6,6.26024691]
[1772464275912,6.34384194,2020.8,2019.0,2.77097741]
[1772464275913,6.55875514,2020.8,2019.0,2.77097741]
[1772464276312,1.23719503,2020.7,2019.0,2.77097741]
[1772464276631,6.34384194,2020.7,2018.4,6.32578291]
[1772464276956,0.2149132,2020.7,2019.0,6.26024691]
[1772464277164,0.2149132,2020.7,2019.3,2.77097741]
[1772464277620,0.2149132,2020.7,2018.8,9.00830889]
[1772464277621,1.705,2020.6,2018.8,9.00830889]
[1772464277820,0.2149132,2020.6,2018.8,9.00830889]
[1772464278031,6.39027321,2020.5,2018.6,2.77097741]
[1772464278238,8.09427321,2020.5,2018.4,3.98797741]
[1772464278421,6.39027321,2020.5,2018.6,6.30286748]
[1772464278622,6.39027321,2020.5,2019.0,1.96178494]
[1772464278846,8.09327321,2020.4,2018.6,1.96178494]
[1772464279038,1.703,2020.3,2018.6,1.96178494]
[1772464279230,8.09327321,2020.3,2018.6,1.96178494]
[1772464279443,0.2149132,2020.5,2018.6,1.96178494]
[1772464279444,6.39027321,2020.2,2018.6,1.96178494]
[1772464279651,1.9179132,2020.5,2018.6,8.54576054]
[1772464279813,6.39027321,2020.4,2018.7,0.34664412]
[1772464280116,6.39027321,2020.2,2018.6,1.96178494]
[1772464280818,6.60518641,2020.2,2018.6,1.96178494]
[1772464281414,0.2149132,2020.2,2019.0,1.96178494]
[1772464281813,0.2149132,2020.2,2018.7,0.34664412]
[1772464282056,0.2149132,2020.2,2019.1,0.065536]
[1772464282349,0.2149132,2020.2,2019.5,1.96178494]
[1772464282716,6.39027321,2021.3,2019.5,1.96178494]
[1772464283148,6.39027321,2021.1,2019.5,1.96178494]
[1772464283345,8.35205815,2021.1,2018.7,6.23733148]
[1772464283518,6.39027321,2021.0,2018.8,0.41218012]
[1772464283717,6.39027321,2021.0,2019.3,1.96178494]
[1772464284243,6.39027321,2020.8,2019.3,1.96178494]
[1772464284446,6.39027321,2020.8,2019.0,3.36178494]
[1772464284620,6.39027321,2020.8,2019.0,1.4]
[1772464284949,6.39027321,2020.6,2019.0,1.4]
[1772464285147,6.39027321,2020.6,2019.1,1.96178494]
[1772464285329,6.39027321,2020.6,2019.0,1.4]
[1772464285527,7.62753167,2020.6,2019.0,1.4]
[1772464285920,6.39027321,2020.5,2019.0,3.36178494]
[1772464286227,6.39027321,2020.5,2019.1,0.065536]
[1772464286427,6.39027321,2020.5,2019.0,3.70842906]
[1772464286629,6.39027321,2020.5,2019.0,1.4]
[1772464286949,8.08627321,2020.5,2019.0,1.4]
[1772464287148,6.39027321,2020.4,2019.0,1.4]
[1772464287346,6.39027321,2020.4,2019.0,0.24792502]
[1772464287554,6.39027321,2019.8,2019.0,0.24792502]
[1772464287860,6.39027321,2019.6,2017.6,1.96178494]
[1772464288058,6.39027321,2019.4,2017.7,0.24792502]
[1772464288355,6.39027321,2019.2,2017.7,0.24792502]
[1772464288528,6.39027321,2019.0,2017.7,0.24792502]
[1772464289057,6.39027321,2019.0,2016.6,1.96178494]
[1772464289264,6.39027321,2018.8,2016.6,1.96178494]
[1772464289421,6.39027321,2018.8,2016.3,1.96178494]
[1772464289422,6.39027321,2018.6,2016.3,1.96178494]
[1772464289621,6.39027321,2018.6,2016.1,1.08783296]
[1772464289622,6.39027321,2018.4,2016.1,1.96178494]
[1772464289858,6.39027321,2018.2,2016.1,1.96178494]
[1772464290068,6.39027321,2017.8,2016.1,1.96178494]
[1772464290354,6.39027321,2017.6,2015.7,1.96178494]
[1772464290558,6.39027321,2017.6,2015.3,1.96178494]
[1772464290857,6.39027321,2017.4,2015.3,3.20227504]
[1772464291046,6.39027321,2017.4,2015.0,1.24061345]
[1772464291353,6.39027321,2017.2,2015.5,1.96178494]
[1772464291566,1.694,2017.1,2015.7,1.96178494]
[1772464291920,6.39027321,2017.2,2016.1,1.96178494]
[1772464292425,6.39027321,2017.8,2016.5,1.96178494]
[1772464292769,6.39027321,2017.8,2016.1,0.065536]
[1772464293337,8.08327321,2017.8,2016.5,1.96178494]
[1772464293956,6.39027321,2017.7,2016.5,1.96178494]
[1772464294162,1.692,2017.7,2016.9,1.96178494]
[1772464294456,2.974,2018.8,2017.3,1.96178494]
[1772464294457,1.692,2018.8,2017.3,1.96178494]
[1772464294760,6.39027321,2018.7,2017.3,1.96178494]
[1772464295061,4.95181046,2019.5,2017.0,0.065536]
[1772464295062,6.39027321,2019.5,2017.7,1.96178494]
[1772464295240,1.694,2019.0,2017.7,1.96178494]
[1772464295648,8.08427321,2019.0,2017.7,1.96178494]
[1772464295849,8.08427321,2019.0,2017.0,4.95769998]
[1772464295850,6.39027321,2018.9,2016.9,1.96178494]
[1772464296528,6.39027321,2018.7,2016.9,1.96178494]
[1772464296723,6.39027321,2018.5,2016.5,1.96178494]
[1772464297033,1.23829071,2019.0,2016.5,1.96178494]
[1772464297034,6.39027321,2018.3,2016.5,1.96178494]
[1772464297545,6.39027321,2018.3,2016.9,1.96178494]
[1772464297931,1.693,2018.2,2016.9,1.96178494]
[1772464298267,6.39027321,2018.0,2016.5,1.96178494]
[1772464298471,8.08227321,2017.9,2016.5,1.96178494]
[1772464298767,0.15,2043.2,2016.1,5.0254086]
[1772464298768,7.628326,2019.3,2016.9,1.96178494]
[1772464298941,6.39027321,2018.6,2016.9,1.96178494]
[1772464299256,6.39027321,2018.4,2016.9,1.96178494]
[1772464299442,6.39027321,2018.2,2016.9,1.96178494]
[1772464299641,6.39027321,2018.2,2016.3,6.23733148]
[1772464299642,6.39027321,2018.2,2016.6,0.065536]
[1772464299843,1.689,2018.1,2016.9,1.96178494]
[1772464300457,6.39027321,2018.7,2016.9,1.96178494]
[1772464300660,8.08027321,2018.6,2016.9,1.96178494]
[1772464300860,1.689,2018.5,2017.3,1.96178494]
[1772464301371,1.688,2018.4,2016.9,1.96178494]
[1772464301539,6.39027321,2018.5,2017.3,1.96178494]
[1772464301540,8.07827321,2018.5,2017.3,1.96178494]
[1772464301738,6.39027321,2018.4,2017.1,1.96178494]
[1772464302464,1.686,2018.3,2017.1,1.96178494]
[1772464302766,6.39027321,2018.4,2017.1,1.96178494]
[1772464302953,6.33027321,2018.4,2017.1,1.96178494]
[1772464303372,6.33027321,2018.4,2016.4,1.96178494]
[1772464303373,6.39027321,2018.2,2016.4,1.96178494]
[1772464303569,1.23860483,2018.4,2016.4,1.96178494]
[1772464303570,6.39027321,2018.0,2016.4,1.96178494]
[1772464303735,4.93578494,2018.8,2016.2,1.30546949]
[1772464303736,1.685,2017.9,2016.8,1.96178494]
[1772464303937,6.39027321,2018.3,2016.8,1.96178494]
[1772464304242,1.685,2018.4,2017.2,1.96178494]
[1772464304565,1.684,2018.3,2017.2,1.96178494]
[1772464304762,1.683,2018.2,2017.2,1.96178494]
[1772464304946,1.683,2018.2,2016.8,1.96178494]
[1772464305344,6.39027321,2018.3,2016.8,1.96178494]
[1772464305581,1.681,2018.2,2016.8,1.96178494]
[1772464305796,8.07127321,2018.3,2017.2,1.96178494]
[1772464305942,8.07127321,2018.3,2016.8,1.96178494]
[1772464306268,8.07127321,2018.3,2016.6,7.47702669]
[1772464306269,1.68,2018.2,2016.7,1.96178494]
[1772464306468,6.39027321,2018.3,2017.1,1.96178494]
[1772464306694,6.39027321,2018.7,2017.3,1.96178494]
[1772464306841,8.07027321,2018.6,2017.3,1.96178494]
[1772464307170,6.91362044,2019.5,2017.2,5.88535482]
[1772464307171,6.39027321,2019.5,2017.2,5.88535482]
[1772464307372,5.96281181,2019.3,2017.7,1.96178494]
[1772464308141,5.96281181,2019.1,2017.3,1.96178494]
[1772464308367,5.96281181,2018.9,2017.3,1.96178494]
[1772464308540,5.96281181,2018.9,2016.9,1.96178494]
[1772464308741,5.96281181,2018.9,2016.6,1.195]
[1772464308936,5.96281181,2018.5,2016.3,1.96278494]
[1772464309141,5.96281181,2018.3,2016.3,1.96278494]
[1772464309336,2.974,2018.5,2016.3,1.96278494]
[1772464309337,5.96281181,2018.1,2016.3,3.20266018]
[1772464309678,7.63881181,2018.1,2016.7,1.96178494]
[1772464309873,1.676,2018.0,2016.7,3.20138621]
[1772464310047,5.96281181,2018.1,2016.7,3.20138621]
[1772464310247,1.675,2018.0,2016.7,3.20138621]
[1772464310455,5.96281181,2018.1,2016.7,3.20138621]
[1772464310761,0.39,2031.1,2017.5,1.96178494]
[1772464310762,5.96281181,2018.7,2017.5,1.96178494]
[1772464310975,7.63681181,2018.7,2017.5,1.96178494]
[1772464311482,7.63681181,2019.2,2017.5,0.065536]
[1772464311771,1.674,2019.4,2018.0,1.96178494]
[1772464311975,5.96281181,2019.3,2016.7,8.13002199]
[1772464312162,5.96281181,2019.1,2017.1,8.17908738]
[1772464312339,5.96281181,2019.1,2017.5,1.96178494]
[1772464312543,6.9124786,2020.0,2017.1,6.21730244]
[1772464312544,1.679,2019.0,2017.1,6.21730244]
[1772464312744,5.96281181,2018.9,2017.2,1.96178494]
[1772464312940,1.678,2019.1,2017.6,1.96178494]
[1772464313184,5.96281181,2019.4,2017.6,1.96178494]
[1772464313363,1.678,2019.1,2017.6,1.96178494]
[1772464313566,1.677,2019.0,2017.4,1.96178494]
[1772464313885,5.96281181,2019.1,2017.4,1.96178494]
[1772464313886,5.96281181,2019.1,2017.5,1.23915737]
[1772464314083,5.96281181,2019.1,2017.4,1.96178494]
[1772464314304,5.96281181,2019.8,2018.2,1.96178494]
[1772464314653,7.20058107,2019.8,2017.5,0.065536]
[1772464314877,7.20058107,2019.8,2017.8,1.96178494]
[1772464315084,7.20058107,2019.8,2017.4,3.20095016]
[1772464315458,5.96281181,2019.6,2017.4,3.20095016]
[1772464315943,1.23776926,2019.8,2017.4,3.20095016]
[1772464315944,5.96281181,2019.4,2017.4,3.20095016]
[1772464316992,7.63681181,2019.3,2017.4,3.20095016]
[1772464317277,7.63681181,2019.3,2017.8,1.96178494]
[1772464317278,1.674,2019.2,2017.8,1.96178494]
[1772464317478,5.96281181,2019.3,2017.8,1.96178494]
[1772464317655,5.96281181,2019.8,2017.8,1.96178494]
[1772464317855,5.96281181,2019.7,2018.2,1.96178494]
[1772464318055,1.673,2019.6,2018.2,1.96178494]
[1772464318256,1.672,2019.5,2018.2,3.20049157]
[1772464318649,1.672,2019.5,2018.2,1.96178494]
[1772464318853,5.96281181,2019.6,2018.2,1.96178494]
[1772464319669,4.35715396,2019.9,2018.6,1.96178494]
[1772464320472,4.35715396,2019.9,2018.2,1.96178494]
[1772464320473,0.003,2019.8,2018.2,1.96178494]
[1772464320668,0.003,2019.8,2018.6,1.96178494]
[1772464320868,0.003,2019.8,2019.0,1.96178494]
[1772464321067,0.003,2019.8,2018.7,6.28283844]
[1772464321668,0.003,2019.8,2018.7,6.21730244]
[1772464321909,0.003,2019.8,2018.4,0.065536]
[1772464322077,0.003,2019.8,2018.5,1.96178494]
[1772464322487,5.96581181,2019.8,2018.2,1.186]
[1772464322682,5.96581181,2019.8,2018.3,1.2386662]
[1772464322964,5.96581181,2019.8,2018.5,1.96178494]
[1772464323187,1.664,2019.7,2018.5,1.96178494]
[1772464323894,5.96581181,2019.8,2018.5,1.96178494]
[1772464324097,0.003,2019.8,2018.5,1.96178494]
[1772464324297,0.003,2019.8,2018.9,1.96178494]
[1772464324503,0.003,2019.8,2018.6,1.183]
[1772464324862,0.003,2019.8,2018.6,2.42148211]
[1772464325205,0.003,2019.8,2018.6,1.183]
[1772464325698,1.66,2019.7,2018.6,1.183]
[1772464326098,1.66,2019.7,2018.5,1.96178494]
[1772464326600,5.96281181,2019.5,2017.9,0.001]
[1772464327219,5.96281181,2019.3,2017.9,0.001]
[1772464327866,5.96281181,2019.2,2017.9,0.001]
[1772464328087,1.657,2019.1,2017.9,0.001]
[1772464328400,1.657,2019.0,2017.9,0.001]
[1772464329200,1.657,2019.7,2018.2,8.17908738]
[1772464329570,0.003,2019.8,2018.3,6.21730244]
[1772464329780,0.003,2019.8,2018.3,6.55904593]
[1772464329974,1.659,2019.8,2018.3,6.21730244]
[1772464330396,1.659,2019.8,2018.6,1.96178494]
[1772464330595,0.003,2019.8,2018.6,1.96178494]
[1772464330966,0.003,2019.8,2018.4,6.21730244]
[1772464331167,1.654,2019.7,2018.4,7.45590727]
[1772464331668,1.654,2019.7,2018.1,0.065536]
[1772464331874,1.653,2019.6,2018.1,0.065536]
[1772464332091,1.653,2019.6,2018.2,1.23872757]
[1772464332289,0.003,2019.8,2018.2,1.23872757]
[1772464332469,1.653,2019.6,2018.2,1.23872757]
[1772464332805,5.96281181,2019.5,2017.9,0.001]
[1772464333174,1.652,2019.4,2017.9,0.001]
[1772464333377,7.61481181,2019.4,2017.9,0.001]
[1772464334193,5.96281181,2019.4,2017.9,0.001]
[1772464334789,1.652,2019.3,2018.0,1.96178494]
[1772464334995,5.96281181,2019.4,2018.0,1.96178494]
[1772464335197,1.652,2019.4,2018.0,1.96178494]
[1772464335401,1.65419404,2019.7,2017.9,0.001]
[1772464335402,6.20421845,2019.6,2017.9,0.001]
[1772464335575,7.85521845,2019.5,2017.9,0.001]
[1772464335779,6.20421845,2019.4,2017.9,0.001]
[1772464336211,1.652,2019.6,2017.9,6.04466207]
[1772464336404,1.651,2019.6,2018.0,1.23885034]
[1772464336609,1.651,2019.6,2018.1,0.001]
[1772464336779,1.65419404,2019.7,2018.1,0.001]
[1772464336980,3.30419404,2019.7,2018.1,0.001]
[1772464337182,9.50841249,2019.7,2018.1,0.001]
[1772464337380,7.85841249,2019.7,2018.1,0.001]
[1772464337580,7.69372829,2019.6,2018.1,0.001]
[1772464338015,1.65,2019.5,2018.1,0.001]
[1772464338176,7.69372829,2019.5,2018.1,0.001]
[1772464338503,6.04372829,2019.4,2018.1,0.001]
[1772464339209,1.65,2019.3,2018.1,0.001]
[1772464339780,6.04372829,2019.4,2018.1,0.001]
[1772464339975,1.65419404,2019.7,2018.1,0.001]
[1772464340179,7.69792233,2019.7,2018.1,7.82391747]
[1772464340381,6.04372829,2019.6,2018.1,0.001]
[1772464341010,6.04372829,2019.2,2017.9,0.001]
[1772464341303,6.04372829,2019.0,2017.9,0.001]
[1772464342031,6.04372829,2018.7,2016.3,0.001]
[1772464342209,8.79505225,2018.3,2016.3,0.001]
[1772464342413,7.28251724,2018.1,2016.3,0.001]
[1772464342613,6.04372829,2017.9,2016.3,0.001]
[1772464342929,6.04372829,2018.7,2016.5,5.86113253]
[1772464343129,6.04372829,2018.7,2016.4,2.75132396]
[1772464343130,6.04372829,2018.5,2016.6,5.92666853]
[1772464343329,6.04372829,2018.5,2016.6,7.09766853]
[1772464343528,1.648,2018.4,2016.6,7.09766853]
[1772464343933,1.648,2018.4,2016.7,7.03313253]
[1772464344102,0.802,2018.8,2016.9,5.86113253]
[1772464344549,0.802,2018.8,2017.1,5.86113253]
[1772464344760,0.802,2018.8,2017.3,5.86113253]
[1772464345435,6.84572829,2018.8,2017.1,0.065536]
[1772464345963,7.69072829,2018.8,2017.1,5.92666853]
[1772464346160,1.647,2018.7,2017.1,5.92666853]
[1772464346571,7.69072829,2018.7,2017.1,5.86113253]
[1772464346938,7.69072829,2018.7,2016.8,4.0564243]
[1772464346939,6.04372829,2018.6,2016.7,1.30518493]
[1772464347244,1.646,2018.5,2016.7,7.16631746]
[1772464347440,6.04372829,2018.4,2016.7,5.86113253]
[1772464347742,6.04372829,2018.4,2016.3,7.10200716]
[1772464347945,6.04372829,2018.4,2016.3,7.44375065]
[1772464348238,6.04372829,2018.4,2016.3,7.10200716]
[1772464348451,1.646,2018.5,2016.3,7.10200716]
[1772464348452,7.68972829,2018.3,2016.4,6.20287602]
[1772464348651,6.04372829,2018.2,2016.4,5.86113253]
[1772464348851,6.04372829,2018.2,2016.4,7.10096589]
[1772464349059,7.68972829,2018.1,2016.4,5.86113253]
[1772464349292,6.04372829,2018.1,2016.4,7.10096589]
[1772464349467,1.645,2018.0,2016.4,7.10096589]
[1772464349770,7.68872829,2018.0,2016.4,7.10096589]
[1772464350060,6.04372829,2017.9,2016.4,5.86113253]
[1772464350458,6.04372829,2017.9,2016.3,0.001]
[1772464350659,6.04372829,2017.8,2016.3,0.001]
[1772464351027,7.28270142,2017.8,2016.3,0.001]
[1772464351233,6.04372829,2017.8,2016.3,5.86213253]
[1772464351430,1.645,2017.9,2016.3,7.10202738]
[1772464351634,7.68772829,2018.3,2016.6,5.86113253]
[1772464351966,7.68772829,2018.3,2016.6,5.86213253]
[1772464352266,1.644,2018.2,2016.6,5.86213253]
[1772464352465,6.04372829,2018.1,2016.6,0.001]
[1772464352666,6.04372829,2017.9,2016.6,0.001]
[1772464352842,6.04372829,2017.7,2016.6,0.001]
[1772464353450,7.68772829,2017.7,2016.6,0.001]
[1772464353645,6.04372829,2017.7,2016.6,0.001]
[1772464353850,1.644,2017.6,2016.6,0.001]
[1772464354071,7.68772829,2017.7,2016.6,0.001]
[1772464354293,2.51116981,2017.8,2016.6,0.001]